[Event "Titled Tuesday Blitz July 27 2021"]
[White "Rodriguez Hernandez, Luis Daniel"]
[Black "Muradli, Mahammad"]
[WhiteFideId "3506770"]
[BlackFideId "13409301"]
[WhiteElo "2133"]
[BlackElo "2482"]
[Result "0-1"]
[Round "08"]
[TimeControl "180+1"]
[Date "2021.07.27"]
[WhiteClock "0:00:01"]
[BlackClock "0:00:29"]

1. e4 {[%clk 0:03:00]}  c5 {[%clk 0:02:59]} 2. c3 {[%clk 0:03:01]}  Nf6 {[%clk 0:02:58]} 3. e5 {[%clk 0:03:01]}  Nd5 {[%clk 0:02:56]} 4. d4 {[%clk 0:03:02]}  cxd4 {[%clk 0:02:57]} 5. Nf3 {[%clk 0:03:03]}  d6 {[%clk 0:02:56]} 6. cxd4 {[%clk 0:03:03]}  Nc6 {[%clk 0:02:55]} 7. Bc4 {[%clk 0:03:04]}  Nb6 {[%clk 0:02:53]} 8. Bb5 {[%clk 0:03:04]}  Bd7 {[%clk 0:02:51]} 9. exd6 {[%clk 0:02:39]}  e6 {[%clk 0:02:51]} 10. Bf4 {[%clk 0:02:39]}  Nd5 {[%clk 0:02:49]} 11. Bxc6 {[%clk 0:02:12]}  Bxc6 {[%clk 0:02:49]} 12. Bg3 {[%clk 0:02:12]}  Bxd6 {[%clk 0:02:43]} 13. O-O {[%clk 0:02:12]}  Be7 {[%clk 0:02:33]} 14. Nc3 {[%clk 0:02:12]}  O-O {[%clk 0:02:30]} 15. Ne5 {[%clk 0:02:12]}  Rc8 {[%clk 0:02:24]} 16. Qb3 {[%clk 0:02:04]}  Nb6 {[%clk 0:02:07]} 17. Rfd1 {[%clk 0:01:52]}  Bd5 {[%clk 0:01:58]} 18. Nxd5 {[%clk 0:01:52]}  Qxd5 {[%clk 0:01:59]} 19. Qxd5 {[%clk 0:01:46]}  Nxd5 {[%clk 0:02:00]} 20. Rac1 {[%clk 0:01:40]}  Bg5 {[%clk 0:01:57]} 21. Rc4 {[%clk 0:01:24]}  Rxc4 {[%clk 0:01:48]} 22. Nxc4 {[%clk 0:01:24]}  Rc8 {[%clk 0:01:49]} 23. Nd6 {[%clk 0:01:24]}  Rc2 {[%clk 0:01:49]} 24. Nxb7 {[%clk 0:01:13]}  Rxb2 {[%clk 0:01:49]} 25. Nc5 {[%clk 0:01:10]}  Rxa2 {[%clk 0:01:49]} 26. Rb1 {[%clk 0:01:10]}  h5 {[%clk 0:01:47]} 27. h4 {[%clk 0:01:01]}  Bf6 {[%clk 0:01:48]} 28. Be5 {[%clk 0:00:58]}  Bxh4 {[%clk 0:01:44]} 29. g3 {[%clk 0:00:52]}  Be7 {[%clk 0:01:42]} 30. Rb8+ {[%clk 0:00:51]}  Kh7 {[%clk 0:01:42]} 31. Nd7 {[%clk 0:00:44]}  f6 {[%clk 0:01:23]} 32. Bf4 {[%clk 0:00:45]}  Kg6 {[%clk 0:01:21]} 33. Rb7 {[%clk 0:00:40]}  a5 {[%clk 0:01:04]} 34. Nb8 {[%clk 0:00:34]}  Nxf4 {[%clk 0:00:50]} 35. gxf4 {[%clk 0:00:23]}  Bd6 {[%clk 0:00:50]} 36. Nc6 {[%clk 0:00:21]}  Bxf4 {[%clk 0:00:50]} 37. Nd8 {[%clk 0:00:17]}  Re2 {[%clk 0:00:40]} 38. Ra7 {[%clk 0:00:14]}  h4 {[%clk 0:00:30]} 39. Rxa5 {[%clk 0:00:13]}  Bc7 {[%clk 0:00:31]} 40. Ra8 {[%clk 0:00:11]}  h3 {[%clk 0:00:31]} 41. Kf1 {[%clk 0:00:05]}  h2 {[%clk 0:00:31]} 42. Kxe2 {[%clk 0:00:04]}  h1=Q {[%clk 0:00:31]} 43. Rc8 {[%clk 0:00:03]}  Qe4+ {[%clk 0:00:32]} 44. Kf1 {[%clk 0:00:03]}  Bxd8 {[%clk 0:00:28]} 45. Rxd8 {[%clk 0:00:04]}  Kf5 {[%clk 0:00:28]} 46. Rd7 {[%clk 0:00:04]}  g5 {[%clk 0:00:29]} 47. Kg1 {[%clk 0:00:04]}  Qd3 {[%clk 0:00:28]} 48. Rd8 {[%clk 0:00:03]}  Kf4 {[%clk 0:00:27]} 49. Kg2 {[%clk 0:00:03]}  Qe4+ {[%clk 0:00:26]} 50. Kf1 {[%clk 0:00:02]}  Kf3 {[%clk 0:00:27]} 51. Kg1 {[%clk 0:00:01]}  Qe1+ {[%clk 0:00:27]} 52. Kh2 {[%clk 0:00:02]}  Qxf2+ {[%clk 0:00:28]} 53. Kh3 {[%clk 0:00:01]}  Qg2# {[%clk 0:00:29]} 0-1


[Site "https://www.chess.com"]

[Event "Titled Tuesday Blitz July 27 2021"]
[White "Sarana, Alexey"]
[Black "Shahade, Gregory"]
[WhiteFideId "24133795"]
[BlackFideId "2009064"]
[WhiteElo "2646"]
[BlackElo "2708"]
[Result "1-0"]
[Round "08"]
[TimeControl "180+1"]
[Date "2021.07.27"]
[WhiteClock "0:00:20"]
[BlackClock "0:00:01"]

1. e4 {[%clk 0:03:00]}  e5 {[%clk 0:03:00]} 2. Nf3 {[%clk 0:02:59]}  Nc6 {[%clk 0:03:00]} 3. Bc4 {[%clk 0:03:00]}  Nf6 {[%clk 0:03:00]} 4. d3 {[%clk 0:02:58]}  Bc5 {[%clk 0:02:59]} 5. c3 {[%clk 0:02:58]}  a6 {[%clk 0:02:59]} 6. h3 {[%clk 0:02:56]}  Ba7 {[%clk 0:02:57]} 7. Bb3 {[%clk 0:02:53]}  d6 {[%clk 0:02:45]} 8. Nbd2 {[%clk 0:02:53]}  O-O {[%clk 0:02:34]} 9. O-O {[%clk 0:02:52]}  h6 {[%clk 0:02:33]} 10. Re1 {[%clk 0:02:51]}  Re8 {[%clk 0:02:31]} 11. Nf1 {[%clk 0:02:51]}  Be6 {[%clk 0:02:31]} 12. Bc2 {[%clk 0:02:51]}  d5 {[%clk 0:02:31]} 13. exd5 {[%clk 0:02:52]}  Bxd5 {[%clk 0:02:18]} 14. Ng3 {[%clk 0:02:51]}  Qd6 {[%clk 0:02:17]} 15. Nh4 {[%clk 0:02:45]}  Ne7 {[%clk 0:02:16]} 16. Qe2 {[%clk 0:02:24]}  Rad8 {[%clk 0:01:54]} 17. Be3 {[%clk 0:02:20]}  Bxe3 {[%clk 0:01:52]} 18. Qxe3 {[%clk 0:02:21]}  Nc6 {[%clk 0:01:22]} 19. Ngf5 {[%clk 0:02:08]}  Qf8 {[%clk 0:01:19]} 20. Rad1 {[%clk 0:02:01]}  Kh8 {[%clk 0:01:15]} 21. Nf3 {[%clk 0:01:50]}  Ng8 {[%clk 0:01:06]} 22. Ng3 {[%clk 0:01:13]}  Nf6 {[%clk 0:01:00]} 23. a3 {[%clk 0:01:12]}  a5 {[%clk 0:00:58]} 24. Ba4 {[%clk 0:01:08]}  Re6 {[%clk 0:00:55]} 25. Bxc6 {[%clk 0:01:00]}  Bxc6 {[%clk 0:00:52]} 26. Nxe5 {[%clk 0:01:00]}  Ba4 {[%clk 0:00:45]} 27. Rc1 {[%clk 0:00:50]}  Kg8 {[%clk 0:00:45]} 28. d4 {[%clk 0:00:49]}  Nd7 {[%clk 0:00:27]} 29. Nxd7 {[%clk 0:00:42]}  Bxd7 {[%clk 0:00:21]} 30. Qf4 {[%clk 0:00:42]}  c6 {[%clk 0:00:20]} 31. Rxe6 {[%clk 0:00:39]}  Bxe6 {[%clk 0:00:20]} 32. Re1 {[%clk 0:00:40]}  a4 {[%clk 0:00:18]} 33. Re5 {[%clk 0:00:37]}  Qd6 {[%clk 0:00:14]} 34. Nf5 {[%clk 0:00:32]}  Qf8 {[%clk 0:00:07]} 35. Ng3 {[%clk 0:00:30]}  Qd6 {[%clk 0:00:06]} 36. Ne4 {[%clk 0:00:30]}  Qe7 {[%clk 0:00:05]} 37. Nc5 {[%clk 0:00:30]}  Rd6 {[%clk 0:00:05]} 38. Qe3 {[%clk 0:00:29]}  Qf6 {[%clk 0:00:04]} 39. Nxb7 {[%clk 0:00:28]}  Rd5 {[%clk 0:00:04]} 40. Nc5 {[%clk 0:00:28]}  Rxe5 {[%clk 0:00:04]} 41. Qxe5 {[%clk 0:00:25]}  Qg6 {[%clk 0:00:04]} 42. Nxe6 {[%clk 0:00:21]}  fxe6 {[%clk 0:00:05]} 43. Kh2 {[%clk 0:00:21]}  Qc2 {[%clk 0:00:04]} 44. Qxe6+ {[%clk 0:00:20]}  Kh7 {[%clk 0:00:04]} 45. Qxc6 {[%clk 0:00:20]}  Qxb2 {[%clk 0:00:05]} 46. Qxa4 {[%clk 0:00:19]}  Qxf2 {[%clk 0:00:05]} 47. d5 {[%clk 0:00:17]}  Qd2 {[%clk 0:00:04]} 48. Qe4+ {[%clk 0:00:17]}  Kh8 {[%clk 0:00:03]} 49. Qd4 {[%clk 0:00:18]}  Qe2 {[%clk 0:00:01]} 50. d6 {[%clk 0:00:18]}  Qe8 {[%clk 0:00:02]} 51. d7 {[%clk 0:00:18]}  Qb8+ {[%clk 0:00:02]} 52. Kg1 {[%clk 0:00:19]}  Qb1+ {[%clk 0:00:02]} 53. Kf2 {[%clk 0:00:19]}  Qc2+ {[%clk 0:00:03]} 54. Ke3 {[%clk 0:00:19]}  Qc1+ {[%clk 0:00:03]} 55. Ke4 {[%clk 0:00:19]}  Qe1+ {[%clk 0:00:03]} 56. Kd5 {[%clk 0:00:20]}  Qe7 {[%clk 0:00:04]} 57. Kc6 {[%clk 0:00:20]}  Qd8 {[%clk 0:00:04]} 58. Qb6 {[%clk 0:00:20]}  Qf6+ {[%clk 0:00:04]} 59. Kb7 {[%clk 0:00:20]}  Qe7 {[%clk 0:00:03]} 60. Kc8 {[%clk 0:00:20]}  Kh7 {[%clk 0:00:02]} 61. d8=Q {[%clk 0:00:20]}  Qe5 {[%clk 0:00:01]} 62. Qbd6 {[%clk 0:00:19]}  Qb5 {[%clk 0:00:01]} 63. Q8d7 {[%clk 0:00:19]}  Qc4+ {[%clk 0:00:01]} 64. Q6c6 {[%clk 0:00:20]}  Qf4 {[%clk 0:00:01]} 65. a4 {[%clk 0:00:20]} 1-0


[Site "https://www.chess.com"]

[Event "Titled Tuesday Blitz July 27 2021"]
[White "Sinitsina, Anastassia"]
[Black "Dang, Hoang Son"]
[WhiteFideId "4504640"]
[BlackFideId "12402435"]
[WhiteElo "2204"]
[BlackElo "2248"]
[Result "0-1"]
[Round "08"]
[TimeControl "180+1"]
[Date "2021.07.27"]
[WhiteClock "0:01:44"]
[BlackClock "0:02:34"]

1. e4 {[%clk 0:03:00]}  g6 {[%clk 0:02:58]} 2. d3 {[%clk 0:03:01]}  Bg7 {[%clk 0:02:59]} 3. Nd2 {[%clk 0:03:01]}  d6 {[%clk 0:03:00]} 4. g3 {[%clk 0:03:02]}  Nf6 {[%clk 0:03:00]} 5. Bg2 {[%clk 0:03:02]}  O-O {[%clk 0:03:01]} 6. Ngf3 {[%clk 0:03:02]}  c5 {[%clk 0:03:02]} 7. O-O {[%clk 0:03:02]}  Nc6 {[%clk 0:03:03]} 8. Re1 {[%clk 0:03:02]}  Rb8 {[%clk 0:03:04]} 9. h4 {[%clk 0:03:02]}  Bg4 {[%clk 0:03:03]} 10. Nf1 {[%clk 0:03:02]}  Nd4 {[%clk 0:02:59]} 11. N1h2 {[%clk 0:03:01]}  Nxf3+ {[%clk 0:03:00]} 12. Nxf3 {[%clk 0:02:58]}  Nd7 {[%clk 0:02:59]} 13. Qd2 {[%clk 0:02:50]}  b5 {[%clk 0:02:56]} 14. Nh2 {[%clk 0:02:48]}  Be6 {[%clk 0:02:56]} 15. Qe2 {[%clk 0:02:44]}  a5 {[%clk 0:02:55]} 16. h5 {[%clk 0:02:43]}  a4 {[%clk 0:02:55]} 17. a3 {[%clk 0:02:39]}  Ne5 {[%clk 0:02:53]} 18. hxg6 {[%clk 0:02:31]}  fxg6 {[%clk 0:02:46]} 19. f4 {[%clk 0:02:15]}  Nc6 {[%clk 0:02:45]} 20. c3 {[%clk 0:02:13]}  b4 {[%clk 0:02:42]} 21. axb4 {[%clk 0:02:12]}  cxb4 {[%clk 0:02:43]} 22. Rxa4 {[%clk 0:02:05]}  bxc3 {[%clk 0:02:42]} 23. bxc3 {[%clk 0:02:05]}  Bxc3 {[%clk 0:02:43]} 24. Bd2 {[%clk 0:01:51]}  Nd4 {[%clk 0:02:35]} 25. Qd1 {[%clk 0:01:48]}  Bb3 {[%clk 0:02:34]} 26. Bxc3 {[%clk 0:01:43]}  Bxd1 {[%clk 0:02:33]} 27. Rxd1 {[%clk 0:01:44]}  Ne2+ {[%clk 0:02:34]} 0-1


[Site "https://www.chess.com"]

[Event "Titled Tuesday Blitz July 27 2021"]
[White "Siva Mahadevan"]
[Black "Sadovsky, Artem"]
[WhiteFideId "25043153"]
[BlackFideId "4155840"]
[WhiteElo "2203"]
[BlackElo "2442"]
[Result "1-0"]
[Round "08"]
[TimeControl "180+1"]
[Date "2021.07.27"]
[WhiteClock "0:00:18"]
[BlackClock "0:00:02"]

1. e4 {[%clk 0:03:00]}  g6 {[%clk 0:03:00]} 2. d4 {[%clk 0:03:01]}  Bg7 {[%clk 0:03:00]} 3. Nc3 {[%clk 0:03:01]}  c6 {[%clk 0:03:00]} 4. f4 {[%clk 0:03:00]}  d5 {[%clk 0:03:01]} 5. e5 {[%clk 0:03:00]}  h5 {[%clk 0:03:01]} 6. Nf3 {[%clk 0:03:00]}  Nh6 {[%clk 0:03:02]} 7. Be3 {[%clk 0:02:59]}  Bg4 {[%clk 0:03:02]} 8. h3 {[%clk 0:02:59]}  Nf5 {[%clk 0:03:02]} 9. Bf2 {[%clk 0:02:59]}  Bxf3 {[%clk 0:03:03]} 10. Qxf3 {[%clk 0:03:00]}  e6 {[%clk 0:03:03]} 11. Bd3 {[%clk 0:02:58]}  h4 {[%clk 0:03:04]} 12. O-O {[%clk 0:02:57]}  Bf8 {[%clk 0:03:02]} 13. Ne2 {[%clk 0:02:57]}  Be7 {[%clk 0:03:01]} 14. b3 {[%clk 0:02:57]}  a5 {[%clk 0:03:01]} 15. a4 {[%clk 0:02:52]}  Na6 {[%clk 0:03:00]} 16. c3 {[%clk 0:02:51]}  Rh5 {[%clk 0:02:41]} 17. Kh2 {[%clk 0:02:38]}  Kf8 {[%clk 0:02:34]} 18. Rad1 {[%clk 0:02:32]}  Nc7 {[%clk 0:02:31]} 19. Ng1 {[%clk 0:02:17]}  Rb8 {[%clk 0:02:05]} 20. Be2 {[%clk 0:02:16]}  Rh8 {[%clk 0:02:02]} 21. Qd3 {[%clk 0:02:14]}  Qd7 {[%clk 0:01:56]} 22. Nf3 {[%clk 0:02:14]}  Qd8 {[%clk 0:01:56]} 23. Rb1 {[%clk 0:02:12]}  Na6 {[%clk 0:01:55]} 24. Qd2 {[%clk 0:02:11]}  Nc7 {[%clk 0:01:54]} 25. b4 {[%clk 0:02:11]}  axb4 {[%clk 0:01:45]} 26. cxb4 {[%clk 0:02:12]}  Ra8 {[%clk 0:01:46]} 27. Ra1 {[%clk 0:01:42]}  Kg7 {[%clk 0:01:35]} 28. Rfb1 {[%clk 0:01:42]}  Ra7 {[%clk 0:01:24]} 29. Bd3 {[%clk 0:01:40]}  Qa8 {[%clk 0:01:19]} 30. Bc2 {[%clk 0:01:35]}  b5 {[%clk 0:01:09]} 31. a5 {[%clk 0:01:34]}  Na6 {[%clk 0:01:10]} 32. Be1 {[%clk 0:01:31]}  Qf8 {[%clk 0:01:03]} 33. Bd3 {[%clk 0:01:26]}  Ra8 {[%clk 0:00:54]} 34. Rb3 {[%clk 0:01:25]}  Rc8 {[%clk 0:00:43]} 35. Rc1 {[%clk 0:01:24]}  Rh5 {[%clk 0:00:40]} 36. Be2 {[%clk 0:01:02]}  Rh8 {[%clk 0:00:38]} 37. Qb2 {[%clk 0:00:59]}  Ne3 {[%clk 0:00:33]} 38. Rxe3 {[%clk 0:00:58]}  Bxb4 {[%clk 0:00:09]} 39. Bxb4 {[%clk 0:00:58]}  Qxb4 {[%clk 0:00:10]} 40. Qxb4 {[%clk 0:00:57]}  Nxb4 {[%clk 0:00:11]} 41. Rb3 {[%clk 0:00:57]}  Na6 {[%clk 0:00:09]} 42. Rbc3 {[%clk 0:00:58]}  Nb4 {[%clk 0:00:02]} 43. Rb1 {[%clk 0:00:38]}  Na6 {[%clk 0:00:02]} 44. Ne1 {[%clk 0:00:37]}  Rc7 {[%clk 0:00:02]} 45. Nd3 {[%clk 0:00:33]}  Ra8 {[%clk 0:00:01]} 46. Rbc1 {[%clk 0:00:29]}  Nb8 {[%clk 0:00:01]} 47. Ra3 {[%clk 0:00:19]}  Rca7 {[%clk 0:00:01]} 48. Rca1 {[%clk 0:00:19]}  Na6 {[%clk 0:00:02]} 49. Kg1 {[%clk 0:00:16]}  Kf8 {[%clk 0:00:02]} 50. Kf2 {[%clk 0:00:16]}  Ke7 {[%clk 0:00:03]} 51. Ke3 {[%clk 0:00:17]}  f5 {[%clk 0:00:02]} 52. exf6+ {[%clk 0:00:16]}  Kxf6 {[%clk 0:00:02]} 53. Ne5 {[%clk 0:00:17]}  Nb4 {[%clk 0:00:02]} 54. Kd2 {[%clk 0:00:16]}  g5 {[%clk 0:00:01]} 55. fxg5+ {[%clk 0:00:16]}  Kxg5 {[%clk 0:00:02]} 56. Rb1 {[%clk 0:00:16]}  Na6 {[%clk 0:00:01]} 57. Nxc6 {[%clk 0:00:16]}  Rc7 {[%clk 0:00:02]} 58. Bxb5 {[%clk 0:00:16]}  Nb8 {[%clk 0:00:01]} 59. Nxb8 {[%clk 0:00:16]}  Rxb8 {[%clk 0:00:02]} 60. a6 {[%clk 0:00:17]}  Rcb7 {[%clk 0:00:02]} 61. Bd3 {[%clk 0:00:18]} 1-0


[Site "https://www.chess.com"]

[Event "Titled Tuesday Blitz July 27 2021"]
[White "Sliwicki, Damian"]
[Black "Dardha, Daniel"]
[WhiteFideId "1127128"]
[BlackFideId "240990"]
[WhiteElo "2475"]
[BlackElo "2744"]
[Result "0-1"]
[Round "08"]
[TimeControl "180+1"]
[Date "2021.07.27"]
[WhiteClock "0:00:03"]
[BlackClock "0:01:08"]

1. e4 {[%clk 0:03:00]}  c5 {[%clk 0:02:55]} 2. Nf3 {[%clk 0:03:00]}  Nf6 {[%clk 0:02:56]} 3. Nc3 {[%clk 0:02:55]}  d5 {[%clk 0:02:49]} 4. e5 {[%clk 0:02:47]}  Nfd7 {[%clk 0:02:40]} 5. Nxd5 {[%clk 0:02:37]}  Nxe5 {[%clk 0:02:36]} 6. Nxe5 {[%clk 0:02:14]}  Qxd5 {[%clk 0:02:29]} 7. Bb5+ {[%clk 0:02:04]}  Nd7 {[%clk 0:02:24]} 8. Nxd7 {[%clk 0:01:42]}  Bxd7 {[%clk 0:02:25]} 9. Bxd7+ {[%clk 0:01:41]}  Qxd7 {[%clk 0:02:26]} 10. O-O {[%clk 0:01:41]}  g6 {[%clk 0:02:25]} 11. Re1 {[%clk 0:01:25]}  Bg7 {[%clk 0:02:24]} 12. d3 {[%clk 0:01:25]}  O-O {[%clk 0:02:23]} 13. Bg5 {[%clk 0:01:22]}  e6 {[%clk 0:02:16]} 14. Qf3 {[%clk 0:01:21]}  Bxb2 {[%clk 0:02:04]} 15. Rab1 {[%clk 0:01:19]}  Bc3 {[%clk 0:02:05]} 16. Rxb7 {[%clk 0:00:57]}  Qa4 {[%clk 0:02:04]} 17. Reb1 {[%clk 0:00:30]}  Qxa2 {[%clk 0:01:48]} 18. h4 {[%clk 0:00:30]}  Qd5 {[%clk 0:01:43]} 19. Qh3 {[%clk 0:00:19]}  a5 {[%clk 0:01:34]} 20. Bh6 {[%clk 0:00:19]}  Rfd8 {[%clk 0:01:21]} 21. Qg3 {[%clk 0:00:19]}  a4 {[%clk 0:01:11]} 22. Qf4 {[%clk 0:00:09]}  Qf5 {[%clk 0:01:11]} 23. Qc4 {[%clk 0:00:09]}  Bd4 {[%clk 0:01:11]} 24. Be3 {[%clk 0:00:06]}  Bxe3 {[%clk 0:01:07]} 25. fxe3 {[%clk 0:00:06]}  a3 {[%clk 0:01:08]} 26. Rf1 {[%clk 0:00:06]}  Qxf1+ {[%clk 0:01:08]} 27. Kxf1 {[%clk 0:00:06]}  a2 {[%clk 0:01:09]} 28. Qf4 {[%clk 0:00:05]}  a1=Q+ {[%clk 0:01:09]} 29. Ke2 {[%clk 0:00:06]}  Rf8 {[%clk 0:01:07]} 30. h5 {[%clk 0:00:06]}  Ra2 {[%clk 0:01:05]} 31. h6 {[%clk 0:00:05]}  Rxc2+ {[%clk 0:01:05]} 32. Kf3 {[%clk 0:00:02]}  Qf1+ {[%clk 0:01:06]} 33. Kg3 {[%clk 0:00:02]}  Rxg2+ {[%clk 0:01:06]} 34. Kh4 {[%clk 0:00:02]}  Qh1+ {[%clk 0:01:07]} 35. Qh2 {[%clk 0:00:03]}  Qxh2# {[%clk 0:01:08]} 0-1


[Site "https://www.chess.com"]

[Event "Titled Tuesday Blitz July 27 2021"]
[White "Spata, German"]
[Black "Srihari L R"]
[WhiteFideId "113026"]
[BlackFideId "46617116"]
[WhiteElo "2238"]
[BlackElo "2121"]
[Result "0-1"]
[Round "08"]
[TimeControl "180+1"]
[Date "2021.07.27"]
[WhiteClock "0:00:46"]
[BlackClock "0:01:03"]

1. d4 {[%clk 0:03:00]}  d6 {[%clk 0:02:58]} 2. Nc3 {[%clk 0:02:57]}  Nf6 {[%clk 0:02:58]} 3. Bf4 {[%clk 0:02:56]}  Nbd7 {[%clk 0:02:55]} 4. Nf3 {[%clk 0:02:53]}  c6 {[%clk 0:02:55]} 5. e4 {[%clk 0:02:51]}  g6 {[%clk 0:02:51]} 6. Qd2 {[%clk 0:02:50]}  Bg7 {[%clk 0:02:51]} 7. O-O-O {[%clk 0:02:24]}  b5 {[%clk 0:02:50]} 8. e5 {[%clk 0:02:23]}  b4 {[%clk 0:02:44]} 9. exf6 {[%clk 0:01:53]}  bxc3 {[%clk 0:02:42]} 10. Qxc3 {[%clk 0:01:53]}  Nxf6 {[%clk 0:02:41]} 11. Bd3 {[%clk 0:01:45]}  O-O {[%clk 0:02:36]} 12. Qd2 {[%clk 0:01:42]}  Be6 {[%clk 0:02:35]} 13. a3 {[%clk 0:01:41]}  Rb8 {[%clk 0:02:34]} 14. h4 {[%clk 0:01:33]}  h5 {[%clk 0:02:33]} 15. Ng5 {[%clk 0:01:32]}  Bd5 {[%clk 0:02:32]} 16. c4 {[%clk 0:01:29]}  Bxg2 {[%clk 0:02:18]} 17. Rhg1 {[%clk 0:01:29]}  e5 {[%clk 0:02:13]} 18. dxe5 {[%clk 0:01:24]}  dxe5 {[%clk 0:02:13]} 19. Bxe5 {[%clk 0:01:23]}  Ne4 {[%clk 0:02:05]} 20. Bxe4 {[%clk 0:01:12]}  Qxd2+ {[%clk 0:02:02]} 21. Rxd2 {[%clk 0:01:10]}  Bxe5 {[%clk 0:02:00]} 22. Rxg2 {[%clk 0:01:00]}  Bf4 {[%clk 0:01:59]} 23. f3 {[%clk 0:01:01]}  Rfd8 {[%clk 0:01:58]} 24. Kc2 {[%clk 0:00:57]}  Bxd2 {[%clk 0:01:56]} 25. Rxd2 {[%clk 0:00:58]}  Rxd2+ {[%clk 0:01:56]} 26. Kxd2 {[%clk 0:00:59]}  Rxb2+ {[%clk 0:01:57]} 27. Kc3 {[%clk 0:00:59]}  Rh2 {[%clk 0:01:48]} 28. Bxc6 {[%clk 0:00:59]}  Rxh4 {[%clk 0:01:47]} 29. Bd5 {[%clk 0:00:55]}  Rf4 {[%clk 0:01:43]} 30. c5 {[%clk 0:00:55]}  Rf5 {[%clk 0:01:40]} 31. Bxf7+ {[%clk 0:00:50]}  Kg7 {[%clk 0:01:38]} 32. Kd4 {[%clk 0:00:48]}  Rxg5 {[%clk 0:01:05]} 33. c6 {[%clk 0:00:48]}  Rg1 {[%clk 0:01:04]} 34. c7 {[%clk 0:00:46]}  Rd1+ {[%clk 0:01:03]} 0-1


[Site "https://www.chess.com"]

[Event "Titled Tuesday Blitz July 27 2021"]
[White "Tang, Andrew"]
[Black "Zubov, Alexander"]
[WhiteFideId "2059630"]
[BlackFideId "14109409"]
[WhiteElo "2599"]
[BlackElo "2740"]
[Result "0-1"]
[Round "08"]
[TimeControl "180+1"]
[Date "2021.07.27"]
[WhiteClock "0:00:02"]
[BlackClock "0:00:26"]

1. d4 {[%clk 0:03:00]}  Nf6 {[%clk 0:02:59]} 2. c4 {[%clk 0:03:00]}  g6 {[%clk 0:03:00]} 3. f3 {[%clk 0:02:59]}  e6 {[%clk 0:02:58]} 4. e4 {[%clk 0:02:59]}  d5 {[%clk 0:02:58]} 5. cxd5 {[%clk 0:02:51]}  exd5 {[%clk 0:02:58]} 6. Nc3 {[%clk 0:02:52]}  dxe4 {[%clk 0:02:58]} 7. fxe4 {[%clk 0:02:53]}  Bg7 {[%clk 0:02:58]} 8. Nf3 {[%clk 0:02:47]}  O-O {[%clk 0:02:57]} 9. Bd3 {[%clk 0:02:45]}  c5 {[%clk 0:02:54]} 10. d5 {[%clk 0:02:11]}  Bg4 {[%clk 0:02:53]} 11. O-O {[%clk 0:02:01]}  Nbd7 {[%clk 0:02:52]} 12. Be3 {[%clk 0:01:53]}  Ne8 {[%clk 0:02:33]} 13. Qd2 {[%clk 0:01:39]}  Bxf3 {[%clk 0:02:15]} 14. gxf3 {[%clk 0:01:36]}  f5 {[%clk 0:02:15]} 15. exf5 {[%clk 0:01:21]}  gxf5 {[%clk 0:02:14]} 16. Ne2 {[%clk 0:01:20]}  Nd6 {[%clk 0:01:22]} 17. Nf4 {[%clk 0:01:14]}  c4 {[%clk 0:01:22]} 18. Bc2 {[%clk 0:00:52]}  Qf6 {[%clk 0:01:20]} 19. Kh1 {[%clk 0:00:43]}  c3 {[%clk 0:01:14]} 20. bxc3 {[%clk 0:00:37]}  Qxc3 {[%clk 0:01:13]} 21. Qf2 {[%clk 0:00:27]}  Rac8 {[%clk 0:01:09]} 22. Bb3 {[%clk 0:00:24]}  Qb4 {[%clk 0:00:50]} 23. Rad1 {[%clk 0:00:23]}  a5 {[%clk 0:00:45]} 24. Ne6 {[%clk 0:00:21]}  Rf7 {[%clk 0:00:41]} 25. Rg1 {[%clk 0:00:20]}  Nf8 {[%clk 0:00:34]} 26. Bd4 {[%clk 0:00:18]}  Ng6 {[%clk 0:00:33]} 27. Nxg7 {[%clk 0:00:17]}  Rxg7 {[%clk 0:00:33]} 28. Bxg7 {[%clk 0:00:16]}  Kxg7 {[%clk 0:00:34]} 29. Rde1 {[%clk 0:00:11]}  a4 {[%clk 0:00:33]} 30. Bc2 {[%clk 0:00:10]}  Qc5 {[%clk 0:00:33]} 31. Qxc5 {[%clk 0:00:06]}  Rxc5 {[%clk 0:00:34]} 32. Bxa4 {[%clk 0:00:07]}  Rc3 {[%clk 0:00:33]} 33. Rgf1 {[%clk 0:00:05]}  Rd3 {[%clk 0:00:30]} 34. Bb3 {[%clk 0:00:05]}  Nf4 {[%clk 0:00:28]} 35. Re7+ {[%clk 0:00:05]}  Kg6 {[%clk 0:00:28]} 36. Rg1+ {[%clk 0:00:05]}  Kf6 {[%clk 0:00:29]} 37. Rxh7 {[%clk 0:00:05]}  Rxf3 {[%clk 0:00:29]} 38. Rh6+ {[%clk 0:00:04]}  Ke5 {[%clk 0:00:30]} 39. Re1+ {[%clk 0:00:05]}  Ne4 {[%clk 0:00:30]} 40. d6 {[%clk 0:00:05]}  Rd3 {[%clk 0:00:31]} 41. Rf1 {[%clk 0:00:04]}  Nxd6 {[%clk 0:00:29]} 42. Rh3 {[%clk 0:00:03]}  Rxh3 {[%clk 0:00:28]} 43. Re1+ {[%clk 0:00:02]}  Ne4 {[%clk 0:00:28]} 44. Rf1 {[%clk 0:00:02]}  b5 {[%clk 0:00:26]} 0-1


[Site "https://www.chess.com"]

[Event "Titled Tuesday Blitz July 27 2021"]
[White "Tokman, Ariel"]
[Black "Kretov, Evgenij"]
[WhiteFideId "117420"]
[BlackFideId "4167821"]
[WhiteElo "2345"]
[BlackElo "2400"]
[Result "0-1"]
[Round "08"]
[TimeControl "180+1"]
[Date "2021.07.27"]
[WhiteClock "0:00:01"]
[BlackClock "0:00:51"]

1. c4 {[%clk 0:03:00]}  Nf6 {[%clk 0:02:59]} 2. g3 {[%clk 0:02:59]}  e6 {[%clk 0:02:56]} 3. Bg2 {[%clk 0:03:00]}  d5 {[%clk 0:02:56]} 4. Nc3 {[%clk 0:02:56]}  c5 {[%clk 0:02:54]} 5. cxd5 {[%clk 0:02:56]}  exd5 {[%clk 0:02:54]} 6. Nf3 {[%clk 0:02:51]}  d4 {[%clk 0:02:54]} 7. Nb1 {[%clk 0:02:51]}  Nc6 {[%clk 0:02:54]} 8. O-O {[%clk 0:02:51]}  Bd6 {[%clk 0:02:53]} 9. d3 {[%clk 0:02:51]}  h6 {[%clk 0:02:53]} 10. Nbd2 {[%clk 0:02:49]}  O-O {[%clk 0:02:53]} 11. a3 {[%clk 0:02:48]}  Be6 {[%clk 0:02:52]} 12. Nc4 {[%clk 0:02:47]}  Bc7 {[%clk 0:02:51]} 13. a4 {[%clk 0:02:25]}  Qd7 {[%clk 0:02:48]} 14. Bd2 {[%clk 0:02:21]}  Rae8 {[%clk 0:02:42]} 15. a5 {[%clk 0:02:19]}  Nd5 {[%clk 0:02:41]} 16. Qa4 {[%clk 0:02:13]}  Bg4 {[%clk 0:02:37]} 17. Rfe1 {[%clk 0:02:12]}  Ncb4 {[%clk 0:02:29]} 18. Bxb4 {[%clk 0:02:02]}  Nxb4 {[%clk 0:02:24]} 19. Qxd7 {[%clk 0:02:00]}  Bxd7 {[%clk 0:02:24]} 20. Rac1 {[%clk 0:01:40]}  Bc6 {[%clk 0:02:24]} 21. Nfd2 {[%clk 0:01:36]}  Bxg2 {[%clk 0:02:23]} 22. Kxg2 {[%clk 0:01:37]}  Rc8 {[%clk 0:02:14]} 23. Ne4 {[%clk 0:01:25]}  b6 {[%clk 0:02:08]} 24. Ned6 {[%clk 0:01:16]}  Bxd6 {[%clk 0:02:04]} 25. Nxd6 {[%clk 0:01:17]}  Rb8 {[%clk 0:01:55]} 26. Nb5 {[%clk 0:01:09]}  Rb7 {[%clk 0:01:53]} 27. Rc4 {[%clk 0:01:01]}  Rd8 {[%clk 0:01:47]} 28. axb6 {[%clk 0:00:44]}  axb6 {[%clk 0:01:47]} 29. Ra1 {[%clk 0:00:44]}  Kf8 {[%clk 0:01:45]} 30. Ra4 {[%clk 0:00:22]}  Nd5 {[%clk 0:01:25]} 31. h4 {[%clk 0:00:16]}  Ke7 {[%clk 0:01:24]} 32. Kf3 {[%clk 0:00:15]}  Ke6 {[%clk 0:01:24]} 33. Ra6 {[%clk 0:00:12]}  Ke5 {[%clk 0:01:18]} 34. Rca4 {[%clk 0:00:09]}  Rdd7 {[%clk 0:01:08]} 35. Ra8 {[%clk 0:00:09]}  h5 {[%clk 0:01:07]} 36. Na3 {[%clk 0:00:08]}  Kf5 {[%clk 0:01:03]} 37. R4a6 {[%clk 0:00:03]}  Nb4 {[%clk 0:01:01]} 38. Ra4 {[%clk 0:00:03]}  g6 {[%clk 0:01:00]} 39. Rc8 {[%clk 0:00:02]}  Rdc7 {[%clk 0:00:57]} 40. Rxc7 {[%clk 0:00:02]}  Rxc7 {[%clk 0:00:57]} 41. Ra8 {[%clk 0:00:03]}  Ke6 {[%clk 0:00:56]} 42. Nc4 {[%clk 0:00:03]}  Nd5 {[%clk 0:00:56]} 43. Ra6 {[%clk 0:00:02]}  Rc6 {[%clk 0:00:55]} 44. Na5 {[%clk 0:00:01]}  Rc7 {[%clk 0:00:51]} 45. Nc4 {[%clk 0:00:01]}  Rb7 {[%clk 0:00:51]} 0-1


[Site "https://www.chess.com"]